[Event "Uhlenkoeper-Open 2024"]
[Site "Uelzen"]
[Date "2024.12.29"]
[Round "6.3"]
[White "Stopa, Jacek"]
[Black "Askerov, Imamali"]
[Result "1-0"]
[ECO "E47"]
[WhiteElo "2323"]
[BlackElo "2007"]
[Annotator "RC"]
[PlyCount "57"]
[EventDate "2024.12.27"]
[EventType "swiss"]
[EventCountry "GER"]
[SourceTitle "playchess.com"]
[Source "ChessBase"]
[SourceQuality "1"]
[TimeControl "40/5400+30:1800+30"]

1. d4 {[%emt 0:00:03]} Nf6 {[%emt 0:00:48]} 2. c4 {[%emt 0:00:07]} e6 {[%emt 0:00:42]} 3. Nc3 {[%emt 0:00:37]} Bb4 {[%emt 0:00:36]} 4. e3 {[%emt 0:00:08]} O-O {[%emt 0:00:27]} 5. Bd3 {[%emt 0:00:05]} d5 {[%emt 0:01:00]} 6. cxd5 {[%emt 0:00:06]} exd5 {[%emt 0:00:43]} 7. Nge2 {[%emt 0:00:07]} b6 {[%emt 0:13:10]} 8. O-O {[%emt 0:02:04]} Bb7 {[%emt 0:00:49]} 9. a3 {[%emt 0:02:49]} Bxc3 {[%emt 0:02:59]} 10. bxc3 {[%emt 0:00:25]} Nbd7 {[%emt 0:02:15]} 11. f3 {[%emt 0:00:57]} Re8 {[%emt 0:01:12]} 12. Ra2 {[%emt 0:01:09]} c5 {[%emt 0:02:32]} 13. Ng3 {[%emt 0:01:42]} Nf8 {[%emt 0:02:31]} 14. Re2 {[%emt 0:03:39]} Qd7 {[%emt 0:03:04]} 15. Qe1 {[%emt 0:02:48]} Bc6 {[%emt 0:07:00]} 16. Nf5 {[%emt 0:08:18]} Ng6 {[%emt 0:22:26]} 17. e4 {[%emt 0:11:24]} Nh5 {[%emt 0:10:59]} 18. g3 {[%emt 0:06:40]} dxe4 {[%emt 0:04:49]} 19. fxe4 {[%emt 0:01:29]} cxd4 {[%emt 0:08:26]} 20. cxd4 {[%emt 0:00:27]} Ne5 {[%emt 0:02:35]} 21. dxe5 {[%emt 0:07:02]} Qxd3 {[%emt 0:00:09]} 22. Re3 {[%emt 0:00:01]} Qb5 {[%emt 0:03:32]} 23. g4 {[%emt 0:00:13]} Qxe5 {[%emt 0:02:19]} 24. gxh5 {[%emt 0:00:07]} Bxe4 {[%emt 0:01:25]} 25. Ng3 {[%emt 0:01:31]} Qc5 {[%emt 0:00:06]} 26. Qf2 {[%emt 0:02:49]} Bd5 {[%emt 0:01:43]} 27. h6 {[%emt 0:00:45]} g6 {[%emt 0:01:04]} 28. Qf6 {[%emt 0:00:38]} Qf8 {[%emt 0:00:26]} 29. Bb2 {[%emt 0:00:08]} 1-0

[Event "Uhlenkoeper-Open 2024"]
[Site "Uelzen"]
[Date "2024.12.29"]
[Round "6.4"]
[White "Martin, Dennis"]
[Black "Bargsten, Justus"]
[Result "0-1"]
[ECO "E08"]
[WhiteElo "2005"]
[BlackElo "2228"]
[Annotator "RC"]
[PlyCount "108"]
[EventDate "2024.12.27"]
[EventType "swiss"]
[EventCountry "GER"]
[SourceTitle "playchess.com"]
[Source "ChessBase"]
[SourceQuality "1"]
[TimeControl "40/5400+30:1800+30"]

1. d4 {[%emt 0:00:02]} d5 {[%emt 0:00:04]} 2. c4 {[%emt 0:00:04]} e6 {[%emt 0:00:03]} 3. Nf3 {[%emt 0:00:08]} Nf6 {[%emt 0:00:05]} 4. g3 {[%emt 0:00:06]} Bb4+ {[%emt 0:00:03]} 5. Bd2 {[%emt 0:00:07]} Be7 {[%emt 0:00:04]} 6. Qc2 {[%emt 0:00:07]} O-O {[%emt 0:00:06]} 7. Bg2 {[%emt 0:00:23]} c6 {[%emt 0:00:05]} 8. O-O {[%emt 0:00:12]} Nbd7 {[%emt 0:00:03]} 9. Bf4 {[%emt 0:00:31]} a5 {[%emt 0:00:04]} 10. Rd1 {[%emt 0:00:19]} a4 {[%emt 0:00:04]} 11. Ne5 {[%emt 0:07:16]} Qa5 {[%emt 0:00:08]} 12. Nd2 {[%emt 0:03:03]} Nxe5 {[%emt 0:10:05]} 13. dxe5 {[%emt 0:01:08]} Nd7 {[%emt 0:00:06]} 14. Nf3 {[%emt 0:00:47]} Qc5 {[%emt 0:13:59]} 15. Rac1 {[%emt 0:02:00]} Qxc4 {[%emt 0:07:09]} 16. Qxc4 {[%emt 0:00:03]} dxc4 {[%emt 0:00:11]} 17. Rxc4 {[%emt 0:00:07]} Ra5 {[%emt 0:02:51]} 18. Rcd4 {[%emt 0:04:38]} Nb6 {[%emt 0:01:57]} 19. e4 {[%emt 0:06:40]} c5 {[%emt 0:07:44]} 20. R4d3 {[%emt 0:07:27]} c4 {[%emt 0:02:15]} 21. R3d2 {[%emt 0:01:41]} a3 {[%emt 0:03:19]} 22. Be3 {[%emt 0:02:37]} axb2 {[%emt 0:05:06]} 23. Rxb2 {[%emt 0:00:02]} Na4 {[%emt 0:00:57]} 24. Rc2 {[%emt 0:00:02]} b5 {[%emt 0:05:57]} 25. Nd4 {[%emt 0:01:29]} Rd8 {[%emt 0:01:21]} 26. Rb1 {[%emt 0:00:34]} Bd7 {[%emt 0:04:09]} 27. Bd2 {[%emt 0:01:12]} c3 {[%emt 0:11:05]} 28. Bxc3 {[%emt 0:01:47]} Nxc3 {[%emt 0:00:11]} 29. Rxc3 {[%emt 0:00:01]} b4 {[%emt 0:02:56]} 30. Rc7 {[%emt 0:02:49]} Rxa2 {[%emt 0:02:34]} 31. Nb3 {[%emt 0:05:06]} Kf8 {[%emt 0:00:55]} 32. Bf1 {[%emt 0:03:28]} Be8 {[%emt 0:04:12]} 33. Kg2 {[%emt 0:10:19]} Rb8 {[%emt 0:00:29]} 34. Bd3 {[%emt 0:00:52]} Bd8 {[%emt 0:03:25]} 35. Rc2 {[%emt 0:00:16]} Rxc2 {[%emt 0:00:12]} 36. Bxc2 {[%emt 0:00:03]} Rc8 {[%emt 0:00:48]} 37. Rb2 {[%emt 0:01:56]} Bb6 {[%emt 0:01:00]} 38. Kf3 {[%emt 0:02:11]} Bc7 {[%emt 0:00:54]} 39. Kf4 {[%emt 0:01:15]} f6 {[%emt 0:00:25]} 40. Ke3 {[%emt 0:00:22]} Bxe5 {[%emt 0:00:31]} 41. Ra2 {[%emt 0:30:04]} g5 {[%emt 0:35:21]} 42. Kd2 {[%emt 0:05:26]} Bb5 {[%emt 0:01:14]} 43. Ra5 {[%emt 0:01:33]} Bc3+ {[%emt 0:00:49]} 44. Kc1 {[%emt 0:00:40]} Bc4 {[%emt 0:00:55]} 45. Rc5 {[%emt 0:01:21]} Rxc5 {[%emt 0:00:06]} 46. Nxc5 {[%emt 0:00:04]} Bd4 {[%emt 0:00:25]} 47. Nd3 {[%emt 0:00:39]} Bxd3 {[%emt 0:00:00]} 48. Bxd3 {[%emt 0:00:00]} Bxf2 {[%emt 0:00:00]} 49. g4 {[%emt 0:00:00]} Ke7 {[%emt 0:00:00]} 50. Kc2 {[%emt 0:00:00]} Kd6 {[%emt 0:00:00]} 51. Kb3 {[%emt 0:00:00]} Kc5 {[%emt 0:00:00]} 52. Bc4 {[%emt 0:00:00]} e5 {[%emt 0:00:00]} 53. Bg8 {[%emt 0:00:00]} h6 {[%emt 0:00:00]} 54. Bh7 {[%emt 0:00:00]} Be1 {[%emt 0:11:08]} 0-1

[Event "Uhlenkoeper-Open 2024"]
[Site "Uelzen"]
[Date "2024.12.29"]
[Round "6.5"]
[White "Dehn, Marcus"]
[Black "Stelmaszyk, Nico"]
[Result "0-1"]
[ECO "D00"]
[WhiteElo "2053"]
[BlackElo "2403"]
[Annotator "TA"]
[PlyCount "72"]
[EventDate "2024.12.27"]
[EventType "swiss"]
[EventCountry "GER"]
[SourceTitle "playchess.com"]
[Source "ChessBase"]
[SourceQuality "1"]
[TimeControl "40/5400+30:1800+30"]

{[%evp 9,72,-17,-18,-31,-18,-20,-31,-27,-19,-33,-8,-20,10,-27,-13,-21,-28,-14,-18,-34,-33,-39,-25,-21,-23,-13,-12,-35,-17,-18,-26,-25,-22,-13,-17,-13,-20,-51,-29,-18,-14,-23,0,-15,83,10,9,-81,-65,-75,-68,-68,-75,-86,-59,-109,-95,-117,-50,-126,-133,-162,-172,-869,-894]} 1. d4 {[%emt 0:00:07]} d5 {[%emt 0:00:04]} 2. g3 {[%emt 0:00:10]} Nf6 {[%emt 0:00:54]} 3. Bg2 {[%emt 0:00:12]} Bf5 {[%emt 0:00:13]} 4. c3 {[%emt 0:02:01]} c6 {[%emt 0:01:38]} 5. Qb3 {[%emt 0:02:47]} Qb6 {[%emt 0:00:19]} 6. Nd2 {[%emt 0:02:54]} e6 {[%emt 0:01:34]} 7. Ngf3 {[%emt 0:00:46]} h6 {[%emt 0:00:32]} 8. O-O {[%emt 0:01:14]} Nbd7 {[%emt 0:00:34]} 9. a4 {[%emt 0:08:44][%cal Ba2a4,Ba4a5][%mdl 32]} Bd6 {[%emt 0:09:17]} 10. a5 {[%emt 0:02:58]} Qc7 {[%emt 0:00:46]} 11. Re1 {[%emt 0:01:30]} O-O {[%emt 0:01:06]} 12. Nh4 {[%emt 0:06:54]} Bh7 {[%emt 0:03:02]} 13. e4 {[%emt 0:05:07]} dxe4 {[%emt 0:02:11]} 14. Nxe4 {[%emt 0:00:21]} Nxe4 {[%emt 0:00:39]} 15. Bxe4 {[%emt 0:00:11]} Bxe4 {[%emt 0:00:04]} 16. Rxe4 {[%emt 0:00:13]} c5 {[%emt 0:01:04]} 17. Qc4 {[%emt 0:09:22]} Nf6 {[%emt 0:05:05]} 18. Re2 {[%emt 0:01:55]} Rfd8 {[%emt 0:02:14]} 19. dxc5 {[%emt 0:08:10]} Bxc5 {[%emt 0:01:59]} 20. Be3 {[%emt 0:01:09]} Rac8 {[%emt 0:00:40]} 21. Qxc5 {[%emt 0:06:38]} Qxc5 {[%emt 0:00:08]} 22. Bxc5 {[%emt 0:00:04]} Rxc5 {[%emt 0:00:07]} 23. Ra3 {[%emt 0:03:16]} Rd1+ {[%emt 0:26:34]} 24. Kg2 {[%emt 0:00:33]} g5 {[%emt 0:00:40]} 25. Nf3 {[%emt 0:00:12]} g4 {[%emt 0:00:34]} 26. Nd4 {[%emt 0:02:42]} e5 {[%emt 0:06:11] [#]} (26... h5 $11) 27. Nf5 {[%emt 0:02:21]} (27. b4 $1 $16 {[%cal Rb4c5]} Rd5 28. Nf5) 27... e4 $1 $36 {[%emt 0:05:13][%mdl 2048] Black has some pressure.} 28. Nxh6+ {[%emt 0:03:26]} (28. Ne3 $11 {keeps the balance.} Rd3 29. h3) 28... Kg7 $17 {[%emt 0:01:23]} 29. Nxg4 $1 {[%emt 0:00:05]} Nxg4 {[%emt 0:00:04]} 30. Rxe4 {[%emt 0:00:05]} Nf6 {[%emt 0:01:30]} 31. Re2 {[%emt 0:01:52]} Rb5 {[%emt 0:01:22]} 32. Rc2 {[%emt 0:09:31]} ({White should play} 32. a6 $15) 32... Rb1 {[%emt 0:03:03] Black has more active pieces.} 33. Ra2 {[%emt 0:00:25]} Nd7 {[%emt 0:08:22]} (33... a6 $17 34. h4 Rd1) 34. c4 {[%emt 0:01:58]} (34. b4 $15) 34... Rc5 {[%emt 0:03:43]} 35. Ra4 {[%emt 0:01:23]} Ne5 {[%emt 0:00:37]} 36. Rb4 $2 {[%emt 0:00:57]} (36. a6 b5 37. Ra3) 36... Nd3 {[%emt 0:00:18]} ({Less strong is} 36... Rxa5 37. Rxb7 Nd3 38. Re2 $17) 0-1

[Event "Uhlenkoeper-Open 2024"]
[Site "Uelzen"]
[Date "2024.12.29"]
[Round "6.6"]
[White "Bogomolow, Sergej"]
[Black "Wilk, Clemens"]
[Result "1-0"]
[ECO "C42"]
[WhiteElo "2090"]
[BlackElo "1869"]
[Annotator "NA RC"]
[PlyCount "45"]
[EventDate "2024.12.27"]
[EventType "swiss"]
[EventCountry "GER"]
[SourceTitle "playchess.com"]
[Source "ChessBase"]
[SourceQuality "1"]
[TimeControl "40/5400+30:1800+30"]

1. e4 {[%emt 0:00:02]} e5 {[%emt 0:00:05]} 2. Nf3 {[%emt 0:00:05]} Nf6 {[%emt 0:00:05]} 3. Nxe5 {[%emt 0:00:39]} d6 {[%emt 0:00:05]} 4. Nf3 {[%emt 0:00:03]} Nxe4 {[%emt 0:00:05]} 5. d4 {[%emt 0:01:30]} d5 {[%emt 0:01:27]} 6. Bd3 {[%emt 0:00:04]} Bd6 {[%emt 0:00:05]} 7. O-O {[%emt 0:00:41]} O-O {[%emt 0:00:06]} 8. c4 {[%emt 0:03:08]} c6 {[%emt 0:00:13]} 9. Nc3 {[%emt 0:01:32]} Nxc3 {[%emt 0:00:16]} 10. bxc3 {[%emt 0:00:07]} dxc4 {[%emt 0:00:06]} 11. Bxc4 {[%emt 0:00:30]} Bf5 {[%emt 0:00:15]} 12. Bg5 {[%emt 0:05:09]} Qa5 {[%emt 0:00:11]} 13. Qd2 {[%emt 0:07:13]} Nd7 {[%emt 0:01:14]} 14. Bf4 {[%emt 0:03:04]} Qc7 {[%emt 0:02:51]} 15. Bg3 {[%emt 0:02:38]} Nf6 {[%emt 0:14:02]} 16. Bxd6 {[%emt 0:06:10]} Qxd6 {[%emt 0:00:09]} 17. Ne5 {[%emt 0:00:15]} Nd7 {[%emt 0:08:19]} 18. Rfe1 {[%emt 0:04:41]} Rae8 {[%emt 0:04:37]} 19. Nxf7 {[%emt 0:11:52]} Rxe1+ {[%emt 0:06:26]} 20. Qxe1 {[%emt 0:01:14]} Qf6 {[%emt 0:04:33]} 21. Nh6+ {[%emt 0:10:34]} Kh8 {[%emt 0:00:39]} 22. Nxf5 {[%emt 0:00:06]} Nb6 {[%emt 0:01:14]} 23. Ne3 {[%emt 0:40:43]} 1-0

[Event "Uhlenkoeper-Open 2024"]
[Site "Uelzen"]
[Date "2024.12.29"]
[Round "6.7"]
[White "Buergener, Richard"]
[Black "Raddatz, Michael"]
[Result "1-0"]
[ECO "B22"]
[WhiteElo "1857"]
[BlackElo "1927"]
[Annotator "RC"]
[PlyCount "57"]
[EventDate "2024.12.27"]
[EventType "swiss"]
[EventCountry "GER"]
[SourceTitle "playchess.com"]
[Source "ChessBase"]
[SourceQuality "1"]
[TimeControl "40/5400+30:1800+30"]

1. e4 {[%emt 0:00:03]} c5 {[%emt 0:01:30]} 2. c3 {[%emt 0:00:08]} Nf6 {[%emt 0:00:26]} 3. e5 {[%emt 0:00:11]} Nd5 {[%emt 0:00:09]} 4. d4 {[%emt 0:00:07]} cxd4 {[%emt 0:00:38]} 5. cxd4 {[%emt 0:00:09]} e6 {[%emt 0:00:28]} 6. Nf3 {[%emt 0:01:01]} Nc6 {[%emt 0:00:21]} 7. Nc3 {[%emt 0:03:53]} Nxc3 {[%emt 0:01:26]} 8. bxc3 {[%emt 0:00:08]} d6 {[%emt 0:00:30]} 9. Bd3 {[%emt 0:03:29]} dxe5 {[%emt 0:02:35]} 10. dxe5 {[%emt 0:00:41]} Qa5 {[%emt 0:00:44]} 11. Qb3 {[%emt 0:09:06]} Nxe5 {[%emt 0:02:24]} 12. Nxe5 {[%emt 0:01:44]} Qxe5+ {[%emt 0:00:11]} 13. Be3 {[%emt 0:00:11]} Bd7 {[%emt 0:05:38]} 14. Qxb7 {[%emt 0:12:21]} Qxc3+ {[%emt 0:01:59]} 15. Ke2 {[%emt 0:00:46]} Bc6 {[%emt 0:00:58]} 16. Qa6 {[%emt 0:01:59]} Qb2+ {[%emt 0:07:34]} 17. Bd2 {[%emt 0:00:37]} Qe5+ {[%emt 0:00:37]} 18. Be3 {[%emt 0:02:11]} Qb2+ {[%emt 0:00:30]} 19. Bd2 {[%emt 0:00:17]} Qb6 {[%emt 0:00:09]} 20. Rhc1 {[%emt 0:10:56]} Qxa6 {[%emt 0:06:46]} 21. Bxa6 {[%emt 0:00:12]} Bd5 {[%emt 0:01:00]} 22. Bb5+ {[%emt 0:11:06]} Ke7 {[%emt 0:00:29]} 23. Rc7+ {[%emt 0:02:46]} Kf6 {[%emt 0:00:21]} 24. Bc3+ {[%emt 0:00:13]} e5 {[%emt 0:04:27]} 25. f4 {[%emt 0:00:48]} Bd6 {[%emt 0:05:38]} 26. Rd7 {[%emt 0:06:30]} Ke6 {[%emt 0:01:54]} 27. f5+ {[%emt 0:00:49]} Kxf5 {[%emt 0:00:07]} 28. Rxd6 {[%emt 0:00:11]} Bxg2 {[%emt 0:02:02]} 29. Bd7+ {[%emt 0:00:18]} 1-0

[Event "Uhlenkoeper-Open 2024"]
[Site "Uelzen"]
[Date "2024.12.29"]
[Round "6.8"]
[White "Weigand, Anton"]
[Black "Henschen, Patrick"]
[Result "1-0"]
[ECO "B01"]
[WhiteElo "2092"]
[BlackElo "1825"]
[Annotator "RC"]
[PlyCount "41"]
[EventDate "2024.12.27"]
[EventType "swiss"]
[EventCountry "GER"]
[SourceTitle "playchess.com"]
[Source "ChessBase"]
[SourceQuality "1"]
[TimeControl "40/5400+30:1800+30"]

1. e4 {[%emt 0:00:04]} d5 {[%emt 0:00:42]} 2. exd5 {[%emt 0:00:09]} Qxd5 {[%emt 0:00:07]} 3. Nc3 {[%emt 0:00:08]} Qd6 {[%emt 0:00:24]} 4. d4 {[%emt 0:01:16]} Nf6 {[%emt 0:00:38]} 5. h3 {[%emt 0:07:50]} c6 {[%emt 0:03:10]} 6. Nf3 {[%emt 0:00:47]} Nbd7 {[%emt 0:00:27]} 7. Bd3 {[%emt 0:08:50]} e5 {[%emt 0:04:10]} 8. dxe5 {[%emt 0:01:05]} Nxe5 {[%emt 0:00:13]} 9. Qe2 {[%emt 0:00:21]} Nfd7 {[%emt 0:02:07]} 10. Bf4 {[%emt 0:01:42]} f6 {[%emt 0:00:28]} 11. O-O-O {[%emt 0:00:24]} Qb4 {[%emt 0:08:08]} 12. g3 {[%emt 0:06:39]} Be7 {[%emt 0:14:38]} 13. Nxe5 {[%emt 0:07:24]} fxe5 {[%emt 0:00:07]} 14. Qh5+ {[%emt 0:03:46]} Kf8 {[%emt 0:00:29]} 15. Bxe5 {[%emt 0:02:21]} Nxe5 {[%emt 0:06:56]} 16. Qxe5 {[%emt 0:00:15]} Bf6 {[%emt 0:00:31]} 17. Qe3 {[%emt 0:12:54]} Bxc3 {[%emt 0:14:02]} 18. bxc3 {[%emt 0:00:04]} Qxc3 {[%emt 0:01:17]} 19. Rde1 {[%emt 0:06:08]} Qa3+ {[%emt 0:10:31]} 20. Kd1 {[%emt 0:00:19]} g6 {[%emt 0:00:07]} 21. Qe5 {[%emt 0:04:53]} 1-0

[Event "Uhlenkoeper-Open 2024"]
[Site "Uelzen"]
[Date "2024.12.29"]
[Round "6.9"]
[White "Carmesin, Leon Lucas Finn"]
[Black "Nyenhuis, Yannek"]
[Result "1/2-1/2"]
[ECO "B30"]
[WhiteElo "2081"]
[BlackElo "1943"]
[Annotator "NA RC"]
[PlyCount "26"]
[EventDate "2024.12.27"]
[EventType "swiss"]
[EventCountry "GER"]
[SourceTitle "playchess.com"]
[Source "ChessBase"]
[SourceQuality "1"]
[TimeControl "40/5400+30:1800+30"]

1. e4 {[%emt 0:00:12]} c5 {[%emt 0:00:08]} 2. Nf3 {[%emt 0:00:08]} Nc6 {[%emt 0:00:08]} 3. b3 {[%emt 0:00:29]} Nf6 {[%emt 0:03:27]} 4. Nc3 {[%emt 0:04:04]} e5 {[%emt 0:00:23]} 5. Bc4 {[%emt 0:11:54]} Be7 {[%emt 0:03:37]} 6. Bb2 {[%emt 0:03:14]} d6 {[%emt 0:00:07]} 7. Qe2 {[%emt 0:02:39]} O-O {[%emt 0:00:20]} 8. a3 {[%emt 0:08:27]} a6 {[%emt 0:01:15]} 9. Nd5 {[%emt 0:02:25]} b5 {[%emt 0:04:03]} 10. Nxf6+ {[%emt 0:03:42]} Bxf6 {[%emt 0:00:03]} 11. Bd5 {[%emt 0:01:17]} Qb6 {[%emt 0:01:44]} 12. O-O {[%emt 0:11:13]} Rb8 {[%emt 0:05:23]} 13. Bxc6 {[%emt 0:04:52]} Qxc6 {[%emt 0:00:54]} 1/2-1/2

[Event "Uhlenkoeper-Open 2024"]
[Site "Uelzen"]
[Date "2024.12.29"]
[Round "6.10"]
[White "Harms, Friedjof"]
[Black "Tarasenko, Nazar"]
[Result "0-1"]
[ECO "B93"]
[WhiteElo "1884"]
[BlackElo "2011"]
[Annotator "NA RC"]
[PlyCount "88"]
[EventDate "2024.12.27"]
[EventType "swiss"]
[EventCountry "GER"]
[SourceTitle "playchess.com"]
[Source "ChessBase"]
[SourceQuality "1"]
[TimeControl "40/5400+30:1800+30"]

1. e4 {[%emt 0:00:03]} c5 {[%emt 0:04:12]} 2. Nc3 {[%emt 0:00:05]} d6 {[%emt 0:00:05]} 3. f4 {[%emt 0:00:04]} a6 {[%emt 0:01:03]} 4. Nf3 {[%emt 0:00:25]} g6 {[%emt 0:01:02]} 5. d4 {[%emt 0:02:12]} cxd4 {[%emt 0:00:30]} 6. Nxd4 {[%emt 0:04:29]} Bg7 {[%emt 0:01:16]} 7. Be3 {[%emt 0:00:58]} Nf6 {[%emt 0:00:51]} 8. Be2 {[%emt 0:15:27]} Nbd7 {[%emt 0:03:31]} 9. O-O {[%emt 0:04:06]} O-O {[%emt 0:01:18]} 10. a4 {[%emt 0:01:17]} Qc7 {[%emt 0:02:46]} 11. Qd2 {[%emt 0:05:43]} b6 {[%emt 0:00:13]} 12. Bf3 {[%emt 0:06:25]} Bb7 {[%emt 0:00:07]} 13. Nb3 {[%emt 0:11:58]} Rac8 {[%emt 0:05:30]} 14. Rac1 {[%emt 0:02:00]} Nc5 {[%emt 0:08:22]} 15. Nxc5 {[%emt 0:02:44]} bxc5 {[%emt 0:03:18]} 16. Rfd1 {[%emt 0:02:04]} Rfd8 {[%emt 0:02:15]} 17. b3 {[%emt 0:04:38]} e6 {[%emt 0:01:19]} 18. Qe1 {[%emt 0:02:09]} Qa5 {[%emt 0:04:56]} 19. Bd2 {[%emt 0:01:02]} Qb6 {[%emt 0:00:24]} 20. Qf2 {[%emt 0:03:32]} Ng4 {[%emt 0:04:04]} 21. Bxg4 {[%emt 0:01:21]} Bd4 {[%emt 0:00:09]} 22. Be3 {[%emt 0:01:10]} Bxc3 {[%emt 0:00:04]} 23. f5 {[%emt 0:03:48]} Bxe4 {[%emt 0:01:31]} 24. fxe6 {[%emt 0:02:36]} f5 {[%emt 0:00:13]} 25. Bf3 {[%emt 0:02:49]} Qc6 {[%emt 0:02:20]} 26. Bxe4 {[%emt 0:01:23]} Qxe4 {[%emt 0:00:10]} 27. Bg5 {[%emt 0:03:00]} Re8 {[%emt 0:00:20]} 28. Rxd6 {[%emt 0:00:44]} Bd4 {[%emt 0:00:05]} 29. Rxd4 {[%emt 0:01:49]} cxd4 {[%emt 0:00:11]} 30. e7 {[%emt 0:01:06]} Kf7 {[%emt 0:00:17]} 31. Qd2 {[%emt 0:04:37]} h6 {[%emt 0:00:13]} 32. Bxh6 {[%emt 0:01:00]} Rxe7 {[%emt 0:00:05]} 33. Bg5 {[%emt 0:01:09]} Rec7 {[%emt 0:00:10]} 34. Re1 {[%emt 0:01:45]} Rxc2 {[%emt 0:01:02]} 35. Rxe4 {[%emt 0:00:38]} Rxd2 {[%emt 0:00:05]} 36. Re7+ {[%emt 0:00:12]} Kf8 {[%emt 0:00:04]} 37. h4 {[%emt 0:02:29]} Rcc2 {[%emt 0:00:38]} 38. Ra7 {[%emt 0:02:07]} Rxg2+ {[%emt 0:00:08]} 39. Kf1 {[%emt 0:00:38]} Rcf2+ {[%emt 0:00:30]} 40. Ke1 {[%emt 0:00:03]} Ra2 {[%emt 0:00:38]} 41. Kf1 {[%emt 0:31:44]} Rh2 {[%emt 0:30:10]} 42. Kg1 {[%emt 0:00:45]} Rhb2 {[%emt 0:00:22]} 43. Ra8+ {[%emt 0:00:35]} Kf7 {[%emt 0:00:05]} 44. Ra7+ {[%emt 0:00:22]} Ke6 {[%emt 0:00:05]} 0-1

[Event "Uhlenkoeper-Open 2024"]
[Site "Uelzen"]
[Date "2024.12.30"]
[Round "7.1"]
[White "Stopa, Jacek"]
[Black "Bagrationi, Alexander"]
[Result "1/2-1/2"]
[ECO "E94"]
[WhiteElo "2323"]
[BlackElo "2384"]
[Annotator "RC"]
[PlyCount "60"]
[EventDate "2024.12.27"]
[EventType "swiss"]
[EventCountry "GER"]
[SourceTitle "playchess.com"]
[Source "ChessBase"]
[SourceQuality "1"]
[TimeControl "40/5400+30:1800+30"]

1. d4 {[%emt 0:00:03]} Nf6 {[%emt 0:03:50]} 2. c4 {[%emt 0:00:07]} g6 {[%emt 0:00:07]} 3. Nc3 {[%emt 0:00:34]} Bg7 {[%emt 0:00:08]} 4. e4 {[%emt 0:00:36]} O-O {[%emt 0:00:09]} 5. Nf3 {[%emt 0:03:17]} d6 {[%emt 0:00:18]} 6. Be2 {[%emt 0:00:43]} Nbd7 {[%emt 0:03:19]} 7. O-O {[%emt 0:00:10]} e5 {[%emt 0:00:05]} 8. Qc2 {[%emt 0:00:54]} exd4 {[%emt 0:03:08]} 9. Nxd4 {[%emt 0:00:06]} Nc5 {[%emt 0:00:02]} 10. Be3 {[%emt 0:03:53]} a5 {[%emt 0:02:02]} 11. f3 {[%emt 0:03:53]} Qe7 {[%emt 0:01:59]} 12. Rfe1 {[%emt 0:03:59]} c6 {[%emt 0:00:33]} 13. Bf1 {[%emt 0:01:26]} a4 {[%emt 0:05:18]} 14. Rab1 {[%emt 0:03:59]} Nfd7 {[%emt 0:04:59]} 15. b4 {[%emt 0:02:22]} axb3 {[%emt 0:05:01]} 16. axb3 {[%emt 0:00:01]} Ne5 {[%emt 0:00:18]} 17. b4 {[%emt 0:13:09]} Ne6 {[%emt 0:00:42]} 18. Nce2 {[%emt 0:00:08]} c5 {[%emt 0:10:53]} 19. bxc5 {[%emt 0:08:37]} dxc5 {[%emt 0:00:32]} 20. Nxe6 {[%emt 0:05:22]} Bxe6 {[%emt 0:01:28]} 21. Nf4 {[%emt 0:00:32]} Ra3 {[%emt 0:01:48]} 22. Rb3 {[%emt 0:11:39]} Rfa8 {[%emt 0:01:26]} 23. Rxa3 {[%emt 0:03:02]} Rxa3 {[%emt 0:04:23]} 24. Nxe6 {[%emt 0:00:24]} fxe6 {[%emt 0:01:22]} 25. Kh1 {[%emt 0:00:18]} Nc6 {[%emt 0:01:15]} 26. Bc1 {[%emt 0:00:44]} Ra1 {[%emt 0:03:22]} 27. f4 {[%emt 0:00:58]} Bd4 {[%emt 0:05:24]} 28. e5 {[%emt 0:02:46]} Qd8 {[%emt 0:02:05]} 29. Bd2 {[%emt 0:02:52]} Ra3 {[%emt 0:03:05]} 30. g3 {[%emt 0:03:10]} Qb6 {[%emt 0:08:01]} 1/2-1/2

[Event "Uhlenkoeper-Open 2024"]
[Site "Uelzen"]
[Date "2024.12.30"]
[Round "7.2"]
[White "Stelmaszyk, Nico"]
[Black "Bogomolow, Sergej"]
[Result "1-0"]
[ECO "C55"]
[WhiteElo "2403"]
[BlackElo "2090"]
[Annotator "RC"]
[PlyCount "73"]
[EventDate "2024.12.27"]
[EventType "swiss"]
[EventCountry "GER"]
[SourceTitle "playchess.com"]
[Source "ChessBase"]
[SourceQuality "1"]
[TimeControl "40/5400+30:1800+30"]

1. e4 {[%emt 0:00:03]} e5 {[%emt 0:00:07]} 2. Nf3 {[%emt 0:00:04]} Nc6 {[%emt 0:00:03]} 3. Bc4 {[%emt 0:00:06]} Nf6 {[%emt 0:00:05]} 4. d3 {[%emt 0:00:04]} h6 {[%emt 0:03:04]} 5. O-O {[%emt 0:00:12]} d6 {[%emt 0:01:18]} 6. c3 {[%emt 0:00:07]} g6 {[%emt 0:02:07]} 7. a4 {[%emt 0:03:44]} Bg7 {[%emt 0:00:49]} 8. a5 {[%emt 0:06:32]} a6 {[%emt 0:06:51]} 9. Qb3 {[%emt 0:14:37]} O-O {[%emt 0:22:32]} 10. Re1 {[%emt 0:00:38]} Nh5 {[%emt 0:06:38]} 11. Be3 {[%emt 0:14:18]} g5 {[%emt 0:05:15]} 12. Qd1 {[%emt 0:12:33]} g4 {[%emt 0:11:31]} 13. Nfd2 {[%emt 0:00:23]} Kh7 {[%emt 0:03:10]} 14. f3 {[%emt 0:12:06]} g3 {[%emt 0:04:06]} 15. hxg3 {[%emt 0:00:48]} Nxg3 {[%emt 0:00:09]} 16. Nf1 {[%emt 0:00:22]} Qh4 {[%emt 0:03:55]} 17. Nbd2 {[%emt 0:09:44]} f5 {[%emt 0:11:07]} 18. Nxg3 {[%emt 0:03:27]} Qxg3 {[%emt 0:00:04]} 19. Nf1 {[%emt 0:01:30]} Qg6 {[%emt 0:02:19]} 20. exf5 {[%emt 0:03:16]} Bxf5 {[%emt 0:00:36]} 21. Bf2 {[%emt 0:01:00]} Rae8 {[%emt 0:04:59]} 22. Ng3 {[%emt 0:01:53]} Bd7 {[%emt 0:02:08]} 23. d4 {[%emt 0:03:32]} Kh8 {[%emt 0:00:41]} 24. Bd3 {[%emt 0:02:16]} Qg5 {[%emt 0:01:17]} 25. Bc2 {[%emt 0:01:20]} Ne7 {[%emt 0:02:02]} 26. dxe5 {[%emt 0:00:36]} Bxe5 {[%emt 0:00:13]} 27. Rxe5 {[%emt 0:00:26]} dxe5 {[%emt 0:00:26]} 28. Qxd7 {[%emt 0:00:12]} Rd8 {[%emt 0:00:39]} 29. Qxc7 {[%emt 0:01:15]} Rg8 {[%emt 0:01:02]} 30. Re1 {[%emt 0:01:50]} Rd2 {[%emt 0:03:38]} 31. Rxe5 {[%emt 0:01:11]} Qxg3 {[%emt 0:01:27]} 32. Bxg3 {[%emt 0:00:06]} Rxg3 {[%emt 0:00:02]} 33. Re2 {[%emt 0:01:22]} Rxe2 {[%emt 0:00:12]} 34. Qxg3 {[%emt 0:00:06]} Rxc2 {[%emt 0:00:11]} 35. Qe5+ {[%emt 0:00:06]} Kg8 {[%emt 0:00:12]} 36. Qxe7 {[%emt 0:00:06]} Rxb2 {[%emt 0:00:07]} 37. f4 {[%emt 0:00:06]} 1-0